[Event "Titled Tuesday Blitz May 9 Early 2023"]
[White "Bethke, Richard"]
[Black "Ambartsumova, Karina"]
[WhiteFideId "12959243"]
[BlackFideId "4166299"]
[WhiteElo "2369"]
[BlackElo "2240"]
[Result "0-1"]
[Round "08"]
[TimeControl "180+2"]
[Date "2023.05.09"]
[WhiteClock "0:00:00"]
[BlackClock "0:00:11"]

1. e4 {[%clk 0:02:58]}  e5 {[%clk 0:02:59]} 2. Nf3 {[%clk 0:02:57]}  Nc6 {[%clk 0:02:59]} 3. Bc4 {[%clk 0:02:57]}  Bc5 {[%clk 0:02:59]} 4. O-O {[%clk 0:02:56]}  Nf6 {[%clk 0:02:58]} 5. d3 {[%clk 0:02:55]}  O-O {[%clk 0:02:58]} 6. h3 {[%clk 0:02:50]}  d5 {[%clk 0:02:58]} 7. exd5 {[%clk 0:02:49]}  Nxd5 {[%clk 0:02:59]} 8. Re1 {[%clk 0:02:49]}  Re8 {[%clk 0:02:59]} 9. Nbd2 {[%clk 0:02:46]}  Nb6 {[%clk 0:02:55]} 10. Bb3 {[%clk 0:02:16]}  Bf5 {[%clk 0:02:26]} 11. Ne4 {[%clk 0:02:11]}  Bf8 {[%clk 0:02:26]} 12. Bg5 {[%clk 0:02:00]}  Qd7 {[%clk 0:02:25]} 13. Qe2 {[%clk 0:01:39]}  a5 {[%clk 0:02:13]} 14. a4 {[%clk 0:01:17]}  Be6 {[%clk 0:02:13]} 15. Bxe6 {[%clk 0:01:11]}  Rxe6 {[%clk 0:02:13]} 16. Be3 {[%clk 0:01:08]}  Nd4 {[%clk 0:02:05]} 17. Bxd4 {[%clk 0:00:44]}  exd4 {[%clk 0:02:06]} 18. Qd2 {[%clk 0:00:42]}  Bb4 {[%clk 0:01:57]} 19. c3 {[%clk 0:00:37]}  dxc3 {[%clk 0:01:58]} 20. bxc3 {[%clk 0:00:34]}  Be7 {[%clk 0:01:58]} 21. d4 {[%clk 0:00:25]}  h6 {[%clk 0:01:51]} 22. Ne5 {[%clk 0:00:23]}  Qd5 {[%clk 0:01:48]} 23. Qf4 {[%clk 0:00:14]}  Nc4 {[%clk 0:01:42]} 24. Nd3 {[%clk 0:00:08]}  Nd6 {[%clk 0:01:14]} 25. Nec5 {[%clk 0:00:07]}  Rxe1+ {[%clk 0:01:14]} 26. Rxe1 {[%clk 0:00:08]}  Bg5 {[%clk 0:01:07]} 27. Qg3 {[%clk 0:00:05]}  b6 {[%clk 0:01:03]} 28. Nd7 {[%clk 0:00:05]}  Rd8 {[%clk 0:00:51]} 29. N7e5 {[%clk 0:00:04]}  Ne4 {[%clk 0:00:50]} 30. Qg4 {[%clk 0:00:04]}  Nxc3 {[%clk 0:00:47]} 31. h4 {[%clk 0:00:05]}  Bf6 {[%clk 0:00:47]} 32. Rc1 {[%clk 0:00:04]}  Qxd4 {[%clk 0:00:41]} 33. Qxd4 {[%clk 0:00:03]}  Ne2+ {[%clk 0:00:41]} 34. Kf1 {[%clk 0:00:03]}  Nxd4 {[%clk 0:00:42]} 35. Rxc7 {[%clk 0:00:04]}  Ne6 {[%clk 0:00:30]} 36. Rd7 {[%clk 0:00:04]}  Rxd7 {[%clk 0:00:26]} 37. Nxd7 {[%clk 0:00:05]}  Bd4 {[%clk 0:00:27]} 38. f4 {[%clk 0:00:05]}  f5 {[%clk 0:00:25]} 39. Ke2 {[%clk 0:00:03]}  Kf7 {[%clk 0:00:26]} 40. N7e5+ {[%clk 0:00:03]}  Ke7 {[%clk 0:00:22]} 41. Nc4 {[%clk 0:00:02]}  Kd7 {[%clk 0:00:20]} 42. Kf3 {[%clk 0:00:01]}  Kc6 {[%clk 0:00:20]} 43. g4 {[%clk 0:00:01]}  fxg4+ {[%clk 0:00:16]} 44. Kxg4 {[%clk 0:00:02]}  Bc3 {[%clk 0:00:16]} 45. Nde5+ {[%clk 0:00:02]}  Kc5 {[%clk 0:00:16]} 46. f5 {[%clk 0:00:02]}  Nd8 {[%clk 0:00:15]} 47. Kh5 {[%clk 0:00:02]}  b5 {[%clk 0:00:13]} 48. axb5 {[%clk 0:00:02]}  Kxb5 {[%clk 0:00:14]} 49. Kg6 {[%clk 0:00:02]}  a4 {[%clk 0:00:11]} 50. Kxg7 {[%clk 0:00:03]}  Nc6 {[%clk 0:00:12]} 51. f6 {[%clk 0:00:03]}  Nxe5 {[%clk 0:00:12]} 52. Nd6+ {[%clk 0:00:00]}  Kc6 {[%clk 0:00:11]} 0-1


[Site "https://www.chess.com"]

[Event "Titled Tuesday Blitz May 9 Early 2023"]
[White "Antal, Gergely"]
[Black "cristianserban1"]
[WhiteFideId "717312"]
[WhiteElo "2471"]
[BlackElo "2494"]
[Result "1-0"]
[Round "08"]
[TimeControl "180+2"]
[Date "2023.05.09"]
[WhiteClock "0:02:44"]
[BlackClock "0:01:52"]

1. Nc3 {[%clk 0:03:00]}  g6 {[%clk 0:02:57]} 2. h4 {[%clk 0:03:00]}  Bg7 {[%clk 0:02:55]} 3. h5 {[%clk 0:03:00]}  d6 {[%clk 0:02:56]} 4. d4 {[%clk 0:03:00]}  Nf6 {[%clk 0:02:56]} 5. h6 {[%clk 0:03:00]}  Bf8 {[%clk 0:02:56]} 6. e4 {[%clk 0:03:00]}  e5 {[%clk 0:02:51]} 7. dxe5 {[%clk 0:03:00]}  dxe5 {[%clk 0:02:51]} 8. Qxd8+ {[%clk 0:03:01]}  Kxd8 {[%clk 0:02:52]} 9. Bg5 {[%clk 0:03:00]}  Be7 {[%clk 0:02:50]} 10. Nf3 {[%clk 0:02:58]}  Nfd7 {[%clk 0:02:36]} 11. Bxe7+ {[%clk 0:02:46]}  Kxe7 {[%clk 0:02:37]} 12. Nd5+ {[%clk 0:02:46]}  Kd8 {[%clk 0:02:38]} 13. Ng5 {[%clk 0:02:46]}  Ke8 {[%clk 0:02:03]} 14. Nxc7+ {[%clk 0:02:46]}  Ke7 {[%clk 0:01:52]} 15. Nxa8 {[%clk 0:02:44]} 1-0


[Site "https://www.chess.com"]

[Event "Titled Tuesday Blitz May 9 Early 2023"]
[White "Korelskiy, Egor"]
[Black "Sourath Biswas"]
[WhiteFideId "34329064"]
[BlackFideId "35091484"]
[WhiteElo "2156"]
[BlackElo "2171"]
[Result "1-0"]
[Round "08"]
[TimeControl "180+2"]
[Date "2023.05.09"]
[WhiteClock "0:00:44"]
[BlackClock "0:00:04"]

1. e4 {[%clk 0:02:56]}  c6 {[%clk 0:02:59]} 2. Nc3 {[%clk 0:02:55]}  d5 {[%clk 0:03:00]} 3. Nf3 {[%clk 0:02:54]}  Bg4 {[%clk 0:03:01]} 4. h3 {[%clk 0:02:54]}  Bxf3 {[%clk 0:03:01]} 5. Qxf3 {[%clk 0:02:55]}  e6 {[%clk 0:03:02]} 6. a3 {[%clk 0:02:55]}  Bc5 {[%clk 0:03:00]} 7. d3 {[%clk 0:02:51]}  Nd7 {[%clk 0:03:00]} 8. Bd2 {[%clk 0:02:51]}  Qb6 {[%clk 0:02:52]} 9. Na4 {[%clk 0:02:48]}  Qb5 {[%clk 0:02:53]} 10. b3 {[%clk 0:02:43]}  d4 {[%clk 0:02:53]} 11. Nxc5 {[%clk 0:02:32]}  Qxc5 {[%clk 0:02:52]} 12. Qd1 {[%clk 0:02:21]}  Qe7 {[%clk 0:02:43]} 13. Be2 {[%clk 0:02:20]}  Ngf6 {[%clk 0:02:40]} 14. O-O {[%clk 0:02:20]}  O-O {[%clk 0:02:41]} 15. f4 {[%clk 0:02:20]}  c5 {[%clk 0:02:37]} 16. a4 {[%clk 0:02:19]}  b6 {[%clk 0:02:36]} 17. Bf3 {[%clk 0:02:15]}  Rab8 {[%clk 0:02:36]} 18. Qe2 {[%clk 0:02:13]}  a6 {[%clk 0:02:36]} 19. e5 {[%clk 0:02:13]}  Nd5 {[%clk 0:02:36]} 20. Bxd5 {[%clk 0:02:12]}  exd5 {[%clk 0:02:36]} 21. Qf3 {[%clk 0:02:11]}  Qe6 {[%clk 0:02:34]} 22. Rae1 {[%clk 0:02:05]}  Rbe8 {[%clk 0:02:26]} 23. f5 {[%clk 0:02:04]}  Qc6 {[%clk 0:02:26]} 24. Bf4 {[%clk 0:02:02]}  b5 {[%clk 0:02:16]} 25. axb5 {[%clk 0:02:01]}  axb5 {[%clk 0:02:17]} 26. Qg3 {[%clk 0:02:00]}  Kh8 {[%clk 0:02:12]} 27. Qg4 {[%clk 0:01:44]}  f6 {[%clk 0:02:04]} 28. e6 {[%clk 0:01:43]}  Nb6 {[%clk 0:02:04]} 29. Ra1 {[%clk 0:01:40]}  Ra8 {[%clk 0:02:01]} 30. h4 {[%clk 0:01:38]}  Rxa1 {[%clk 0:01:03]} 31. Rxa1 {[%clk 0:01:37]}  Ra8 {[%clk 0:01:04]} 32. Re1 {[%clk 0:01:35]}  Re8 {[%clk 0:00:53]} 33. h5 {[%clk 0:01:35]}  Nc8 {[%clk 0:00:35]} 34. h6 {[%clk 0:01:34]}  Qb7 {[%clk 0:00:36]} 35. hxg7+ {[%clk 0:01:16]}  Qxg7 {[%clk 0:00:35]} 36. Qh4 {[%clk 0:01:16]}  Rg8 {[%clk 0:00:16]} 37. Re2 {[%clk 0:01:14]}  Qf8 {[%clk 0:00:08]} 38. g4 {[%clk 0:00:58]}  Qg7 {[%clk 0:00:04]} 39. Rg2 {[%clk 0:00:57]}  Qe7 {[%clk 0:00:04]} 40. g5 {[%clk 0:00:56]}  Nd6 {[%clk 0:00:02]} 41. gxf6 {[%clk 0:00:51]}  Rxg2+ {[%clk 0:00:03]} 42. Kxg2 {[%clk 0:00:51]}  Qf8 {[%clk 0:00:03]} 43. Bxd6 {[%clk 0:00:45]}  Qxd6 {[%clk 0:00:03]} 44. f7 {[%clk 0:00:43]}  Kg7 {[%clk 0:00:03]} 45. Qg5+ {[%clk 0:00:43]}  Kf8 {[%clk 0:00:03]} 46. Qg8+ {[%clk 0:00:43]}  Ke7 {[%clk 0:00:04]} 47. f8=Q# {[%clk 0:00:44]} 1-0


[Site "https://www.chess.com"]

[Event "Titled Tuesday Blitz May 9 Early 2023"]
[White "WindWhistler11"]
[Black "Berezin, Viktor"]
[BlackFideId "14107872"]
[WhiteElo "2488"]
[BlackElo "2310"]
[Result "1-0"]
[Round "08"]
[TimeControl "180+2"]
[Date "2023.05.09"]
[WhiteClock "0:00:06"]
[BlackClock "0:00:02"]

1. Nf3 {[%clk 0:02:51]}  Nf6 {[%clk 0:02:59]} 2. g3 {[%clk 0:02:52]}  g6 {[%clk 0:03:00]} 3. c4 {[%clk 0:02:53]}  Bg7 {[%clk 0:03:01]} 4. Bg2 {[%clk 0:02:53]}  O-O {[%clk 0:03:01]} 5. O-O {[%clk 0:02:54]}  d6 {[%clk 0:03:02]} 6. d3 {[%clk 0:02:55]}  Nc6 {[%clk 0:03:02]} 7. Qc2 {[%clk 0:02:55]}  e5 {[%clk 0:03:02]} 8. a3 {[%clk 0:02:56]}  a5 {[%clk 0:03:02]} 9. b3 {[%clk 0:02:56]}  Nd7 {[%clk 0:02:56]} 10. Bb2 {[%clk 0:02:56]}  Nc5 {[%clk 0:02:57]} 11. Nbd2 {[%clk 0:02:56]}  Ne6 {[%clk 0:02:56]} 12. e3 {[%clk 0:02:57]}  h6 {[%clk 0:02:55]} 13. Bc3 {[%clk 0:02:56]}  f5 {[%clk 0:02:54]} 14. b4 {[%clk 0:02:52]}  f4 {[%clk 0:02:52]} 15. b5 {[%clk 0:02:50]}  Ne7 {[%clk 0:02:52]} 16. d4 {[%clk 0:02:47]}  fxe3 {[%clk 0:02:48]} 17. fxe3 {[%clk 0:02:47]}  exd4 {[%clk 0:02:34]} 18. exd4 {[%clk 0:02:28]}  d5 {[%clk 0:02:32]} 19. Ne5 {[%clk 0:02:13]}  g5 {[%clk 0:02:01]} 20. Ng6 {[%clk 0:01:55]}  Nxg6 {[%clk 0:01:43]} 21. Qxg6 {[%clk 0:01:55]}  c6 {[%clk 0:01:38]} 22. bxc6 {[%clk 0:01:37]}  bxc6 {[%clk 0:01:39]} 23. cxd5 {[%clk 0:01:29]}  cxd5 {[%clk 0:01:40]} 24. Nc4 {[%clk 0:01:25]}  Ra6 {[%clk 0:01:29]} 25. Ne3 {[%clk 0:00:52]}  Nf4 {[%clk 0:01:20]} 26. Qc2 {[%clk 0:00:40]}  Nxg2 {[%clk 0:01:20]} 27. Qxg2 {[%clk 0:00:41]}  Be6 {[%clk 0:01:15]} 28. Rxf8+ {[%clk 0:00:37]}  Qxf8 {[%clk 0:01:15]} 29. Nxd5 {[%clk 0:00:33]}  Qd6 {[%clk 0:00:52]} 30. Ne3 {[%clk 0:00:20]}  Bxd4 {[%clk 0:00:40]} 31. Bxd4 {[%clk 0:00:20]}  Qxd4 {[%clk 0:00:41]} 32. Re1 {[%clk 0:00:20]}  Bf7 {[%clk 0:00:34]} 33. Qf2 {[%clk 0:00:11]}  Rf6 {[%clk 0:00:33]} 34. Qc2 {[%clk 0:00:07]}  Rf3 {[%clk 0:00:28]} 35. Qc8+ {[%clk 0:00:05]}  Kg7 {[%clk 0:00:26]} 36. Qc1 {[%clk 0:00:05]}  Qf6 {[%clk 0:00:16]} 37. Kh1 {[%clk 0:00:04]}  Rf2 {[%clk 0:00:14]} 38. Qd1 {[%clk 0:00:02]}  Ra2 {[%clk 0:00:06]} 39. Rf1 {[%clk 0:00:02]}  Qc6+ {[%clk 0:00:05]} 40. Kg1 {[%clk 0:00:01]}  Rb2 {[%clk 0:00:02]} 41. Qd4+ {[%clk 0:00:01]}  Kg8 {[%clk 0:00:02]} 42. Qd8+ {[%clk 0:00:01]}  Kh7 {[%clk 0:00:02]} 43. Qd3+ {[%clk 0:00:02]}  Kg7 {[%clk 0:00:02]} 44. Qd4+ {[%clk 0:00:02]}  Kg8 {[%clk 0:00:03]} 45. Qxb2 {[%clk 0:00:03]}  Qe4 {[%clk 0:00:03]} 46. Qf2 {[%clk 0:00:03]}  Qe7 {[%clk 0:00:03]} 47. Nf5 {[%clk 0:00:04]}  Qf6 {[%clk 0:00:02]} 48. Qe3 {[%clk 0:00:03]}  Kh7 {[%clk 0:00:01]} 49. Ne7 {[%clk 0:00:03]}  Qg7 {[%clk 0:00:01]} 50. Qe4+ {[%clk 0:00:03]}  Kh8 {[%clk 0:00:01]} 51. Nf5 {[%clk 0:00:03]}  Qf6 {[%clk 0:00:01]} 52. Qa8+ {[%clk 0:00:04]}  Kh7 {[%clk 0:00:01]} 53. Qe4 {[%clk 0:00:04]}  Qb6+ {[%clk 0:00:01]} 54. Kg2 {[%clk 0:00:05]}  Bg6 {[%clk 0:00:02]} 55. g4 {[%clk 0:00:05]}  Be8 {[%clk 0:00:02]} 56. Qe7+ {[%clk 0:00:05]}  Kh8 {[%clk 0:00:02]} 57. Qg7# {[%clk 0:00:06]} 1-0


[Site "https://www.chess.com"]

[Event "Titled Tuesday Blitz May 9 Early 2023"]
[White "feuervogel1000000"]
[Black "Sharapov, Evgeny"]
[BlackFideId "14103133"]
[WhiteElo "2464"]
[BlackElo "2367"]
[Result "1/2-1/2"]
[Round "08"]
[TimeControl "180+2"]
[Date "2023.05.09"]
[WhiteClock "0:00:16"]
[BlackClock "0:00:09"]

1. d4 {[%clk 0:03:00]}  Nf6 {[%clk 0:02:59]} 2. c4 {[%clk 0:02:59]}  e6 {[%clk 0:02:59]} 3. Nc3 {[%clk 0:02:59]}  d5 {[%clk 0:02:58]} 4. cxd5 {[%clk 0:02:59]}  exd5 {[%clk 0:02:59]} 5. Bg5 {[%clk 0:02:58]}  c6 {[%clk 0:02:59]} 6. e3 {[%clk 0:02:58]}  h6 {[%clk 0:02:57]} 7. Bh4 {[%clk 0:02:58]}  Be7 {[%clk 0:02:58]} 8. Bd3 {[%clk 0:02:57]}  O-O {[%clk 0:02:57]} 9. Nge2 {[%clk 0:02:58]}  Nbd7 {[%clk 0:02:56]} 10. Qc2 {[%clk 0:02:58]}  Re8 {[%clk 0:02:55]} 11. O-O-O {[%clk 0:02:58]}  a5 {[%clk 0:02:53]} 12. f3 {[%clk 0:02:48]}  a4 {[%clk 0:02:53]} 13. e4 {[%clk 0:02:40]}  a3 {[%clk 0:02:52]} 14. e5 {[%clk 0:02:37]}  axb2+ {[%clk 0:02:52]} 15. Kb1 {[%clk 0:02:37]}  Ne4 {[%clk 0:02:50]} 16. fxe4 {[%clk 0:02:35]}  Bxh4 {[%clk 0:02:49]} 17. exd5 {[%clk 0:02:36]}  cxd5 {[%clk 0:02:45]} 18. Nxd5 {[%clk 0:02:27]}  Qa5 {[%clk 0:02:44]} 19. Nec3 {[%clk 0:02:21]}  Nf8 {[%clk 0:02:34]} 20. Bc4 {[%clk 0:02:02]}  Be6 {[%clk 0:02:30]} 21. Bb3 {[%clk 0:01:57]}  b5 {[%clk 0:02:24]} 22. Ne4 {[%clk 0:01:46]}  Rec8 {[%clk 0:02:15]} 23. Nc5 {[%clk 0:01:46]}  Nd7 {[%clk 0:01:58]} 24. Rhf1 {[%clk 0:01:10]}  Nxc5 {[%clk 0:01:36]} 25. dxc5 {[%clk 0:01:11]}  b4 {[%clk 0:01:36]} 26. c6 {[%clk 0:01:08]}  Ra6 {[%clk 0:01:10]} 27. c7 {[%clk 0:00:40]}  Bxd5 {[%clk 0:01:07]} 28. Rxd5 {[%clk 0:00:40]}  Qxc7 {[%clk 0:01:05]} 29. Qxc7 {[%clk 0:00:24]}  Rxc7 {[%clk 0:01:05]} 30. Rd4 {[%clk 0:00:22]}  Bg5 {[%clk 0:00:52]} 31. Kxb2 {[%clk 0:00:22]}  Ra5 {[%clk 0:00:45]} 32. h4 {[%clk 0:00:11]}  Be3 {[%clk 0:00:38]} 33. Re4 {[%clk 0:00:10]}  Bd2 {[%clk 0:00:36]} 34. e6 {[%clk 0:00:10]}  Bc3+ {[%clk 0:00:35]} 35. Kb1 {[%clk 0:00:11]}  fxe6 {[%clk 0:00:30]} 36. Bxe6+ {[%clk 0:00:11]}  Kh7 {[%clk 0:00:29]} 37. Bb3 {[%clk 0:00:06]}  g6 {[%clk 0:00:23]} 38. Re8 {[%clk 0:00:05]}  Rf5 {[%clk 0:00:20]} 39. Rxf5 {[%clk 0:00:04]}  gxf5 {[%clk 0:00:20]} 40. Bc2 {[%clk 0:00:05]}  Kg6 {[%clk 0:00:17]} 41. Re6+ {[%clk 0:00:05]}  Kg7 {[%clk 0:00:15]} 42. Bxf5 {[%clk 0:00:05]}  Rc5 {[%clk 0:00:15]} 43. g4 {[%clk 0:00:05]}  Bf6 {[%clk 0:00:13]} 44. h5 {[%clk 0:00:04]}  Bg5 {[%clk 0:00:11]} 45. Re1 {[%clk 0:00:03]}  Bd2 {[%clk 0:00:11]} 46. Re2 {[%clk 0:00:03]}  Bg5 {[%clk 0:00:10]} 47. Kb2 {[%clk 0:00:03]}  Bf6+ {[%clk 0:00:10]} 48. Kb3 {[%clk 0:00:04]}  Bc3 {[%clk 0:00:09]} 49. Re7+ {[%clk 0:00:04]}  Kf6 {[%clk 0:00:09]} 50. Re6+ {[%clk 0:00:05]}  Kg5 {[%clk 0:00:08]} 51. Rg6+ {[%clk 0:00:05]}  Kf4 {[%clk 0:00:09]} 52. Rxh6 {[%clk 0:00:06]}  Bd2 {[%clk 0:00:08]} 53. Re6 {[%clk 0:00:06]}  Rc3+ {[%clk 0:00:07]} 54. Kb2 {[%clk 0:00:07]}  Bc1+ {[%clk 0:00:08]} 55. Kb1 {[%clk 0:00:07]}  Ba3 {[%clk 0:00:08]} 56. Re4+ {[%clk 0:00:08]}  Kg5 {[%clk 0:00:08]} 57. Re1 {[%clk 0:00:08]}  Kh6 {[%clk 0:00:08]} 58. Rg1 {[%clk 0:00:08]}  Kg5 {[%clk 0:00:08]} 59. Rh1 {[%clk 0:00:09]}  Kh6 {[%clk 0:00:08]} 60. Bc2 {[%clk 0:00:09]}  Re3 {[%clk 0:00:07]} 61. Bb3 {[%clk 0:00:08]}  Rg3 {[%clk 0:00:06]} 62. Bd1 {[%clk 0:00:07]}  Rg2 {[%clk 0:00:05]} 63. Bc2 {[%clk 0:00:05]}  Rxg4 {[%clk 0:00:04]} 64. Bd3 {[%clk 0:00:03]}  Rg3 {[%clk 0:00:04]} 65. Kc2 {[%clk 0:00:03]}  Rg2+ {[%clk 0:00:04]} 66. Kb3 {[%clk 0:00:03]}  Rg3 {[%clk 0:00:05]} 67. Kc4 {[%clk 0:00:03]}  Rg4+ {[%clk 0:00:05]} 68. Kd5 {[%clk 0:00:04]}  Rg2 {[%clk 0:00:05]} 69. Bc4 {[%clk 0:00:03]}  Rd2+ {[%clk 0:00:05]} 70. Kc6 {[%clk 0:00:03]}  Rc2 {[%clk 0:00:05]} 71. Kb5 {[%clk 0:00:04]}  Rc3 {[%clk 0:00:05]} 72. Bb3 {[%clk 0:00:04]}  Rg3 {[%clk 0:00:05]} 73. Re1 {[%clk 0:00:04]}  Rg5+ {[%clk 0:00:05]} 74. Ka4 {[%clk 0:00:04]}  Kxh5 {[%clk 0:00:06]} 75. Re6 {[%clk 0:00:05]}  Kg4 {[%clk 0:00:06]} 76. Bd1+ {[%clk 0:00:05]}  Kf4 {[%clk 0:00:06]} 77. Re1 {[%clk 0:00:06]}  Re5 {[%clk 0:00:06]} 78. Rf1+ {[%clk 0:00:05]}  Ke3 {[%clk 0:00:06]} 79. Bb3 {[%clk 0:00:06]}  Kd4 {[%clk 0:00:06]} 80. Rd1+ {[%clk 0:00:06]}  Kc3 {[%clk 0:00:06]} 81. Rd8 {[%clk 0:00:06]}  Rc5 {[%clk 0:00:05]} 82. Rd1 {[%clk 0:00:05]}  Kb2 {[%clk 0:00:05]} 83. Rd2+ {[%clk 0:00:06]}  Kc1 {[%clk 0:00:05]} 84. Rd4 {[%clk 0:00:06]}  Kb2 {[%clk 0:00:05]} 85. Rd6 {[%clk 0:00:05]}  Kc1 {[%clk 0:00:04]} 86. Rf6 {[%clk 0:00:04]}  Kb2 {[%clk 0:00:04]} 87. Rf2+ {[%clk 0:00:04]}  Kc1 {[%clk 0:00:05]} 88. Re2 {[%clk 0:00:05]}  Rc3 {[%clk 0:00:03]} 89. Kb5 {[%clk 0:00:05]}  Rd3 {[%clk 0:00:03]} 90. Kc4 {[%clk 0:00:05]}  Rd2 {[%clk 0:00:02]} 91. Re1+ {[%clk 0:00:05]}  Kb2 {[%clk 0:00:03]} 92. Re3 {[%clk 0:00:05]}  Rh2 {[%clk 0:00:02]} 93. Kd4 {[%clk 0:00:05]}  Rh4+ {[%clk 0:00:02]} 94. Kd3 {[%clk 0:00:06]}  Rh2 {[%clk 0:00:03]} 95. Re4 {[%clk 0:00:06]}  Rh3+ {[%clk 0:00:03]} 96. Kc4 {[%clk 0:00:06]}  Rh2 {[%clk 0:00:03]} 97. Kd4 {[%clk 0:00:07]}  Rd2+ {[%clk 0:00:03]} 98. Ke3 {[%clk 0:00:07]}  Rh2 {[%clk 0:00:03]} 99. Rf4 {[%clk 0:00:07]}  Rh3+ {[%clk 0:00:03]} 100. Kd4 {[%clk 0:00:07]}  Rh2 {[%clk 0:00:02]} 101. Rf1 {[%clk 0:00:07]}  Rd2+ {[%clk 0:00:02]} 102. Ke3 {[%clk 0:00:08]}  Rh2 {[%clk 0:00:02]} 103. Bc4 {[%clk 0:00:07]}  Rh3+ {[%clk 0:00:02]} 104. Ke4 {[%clk 0:00:07]}  Rh4+ {[%clk 0:00:03]} 105. Kd5 {[%clk 0:00:07]}  Rh5+ {[%clk 0:00:03]} 106. Kd4 {[%clk 0:00:07]}  Rh4+ {[%clk 0:00:03]} 107. Kd5 {[%clk 0:00:08]}  Rh5+ {[%clk 0:00:04]} 108. Kc6 {[%clk 0:00:08]}  Rh6+ {[%clk 0:00:04]} 109. Kb5 {[%clk 0:00:08]}  Rh5+ {[%clk 0:00:05]} 110. Ka4 {[%clk 0:00:09]}  Rh2 {[%clk 0:00:05]} 111. Bb3 {[%clk 0:00:09]}  Rg2 {[%clk 0:00:05]} 112. Rf3 {[%clk 0:00:09]}  Rh2 {[%clk 0:00:05]} 113. Re3 {[%clk 0:00:09]}  Rg2 {[%clk 0:00:06]} 114. Bd5 {[%clk 0:00:08]}  Rf2 {[%clk 0:00:06]} 115. Rb3+ {[%clk 0:00:08]}  Kc2 {[%clk 0:00:06]} 116. Be4+ {[%clk 0:00:08]}  Kd2 {[%clk 0:00:06]} 117. Bb1 {[%clk 0:00:06]}  Ke2 {[%clk 0:00:05]} 118. Kb5 {[%clk 0:00:06]}  Rf3 {[%clk 0:00:05]} 119. Bc2 {[%clk 0:00:04]}  Rxb3 {[%clk 0:00:04]} 120. Bxb3 {[%clk 0:00:04]}  Kd2 {[%clk 0:00:05]} 121. Bc4 {[%clk 0:00:05]}  Kc3 {[%clk 0:00:05]} 122. Bb3 {[%clk 0:00:06]}  Kb2 {[%clk 0:00:06]} 123. Ka4 {[%clk 0:00:07]}  Kc3 {[%clk 0:00:06]} 124. Ka5 {[%clk 0:00:08]}  Kd4 {[%clk 0:00:06]} 125. Ka6 {[%clk 0:00:09]}  Kc3 {[%clk 0:00:07]} 126. Ka7 {[%clk 0:00:10]}  Kd4 {[%clk 0:00:07]} 127. Kb7 {[%clk 0:00:11]}  Kc3 {[%clk 0:00:08]} 128. Ka6 {[%clk 0:00:12]}  Kd4 {[%clk 0:00:08]} 129. Kb5 {[%clk 0:00:13]}  Kc3 {[%clk 0:00:08]} 130. Ka4 {[%clk 0:00:13]}  Kd4 {[%clk 0:00:09]} 131. Kb5 {[%clk 0:00:14]}  Kc3 {[%clk 0:00:09]} 132. Ka4 {[%clk 0:00:15]}  Kd4 {[%clk 0:00:09]} 133. Kb5 {[%clk 0:00:16]} 1/2-1/2


[Site "https://www.chess.com"]

[Event "Titled Tuesday Blitz May 9 Early 2023"]
[White "Omranalhosani21"]
[Black "electrosaw"]
[WhiteElo "2591"]
[BlackElo "2461"]
[Result "1-0"]
[Round "08"]
[TimeControl "180+2"]
[Date "2023.05.09"]
[WhiteClock "0:01:31"]
[BlackClock "0:01:48"]

1. e4 {[%clk 0:02:59]}  c5 {[%clk 0:03:00]} 2. Nf3 {[%clk 0:02:59]}  g6 {[%clk 0:03:00]} 3. Bd3 {[%clk 0:02:58]}  Nc6 {[%clk 0:03:00]} 4. O-O {[%clk 0:02:58]}  Bg7 {[%clk 0:03:00]} 5. c3 {[%clk 0:02:59]}  Nf6 {[%clk 0:03:01]} 6. Bc2 {[%clk 0:02:59]}  O-O {[%clk 0:03:01]} 7. d4 {[%clk 0:02:59]}  cxd4 {[%clk 0:02:59]} 8. cxd4 {[%clk 0:02:59]}  d5 {[%clk 0:03:00]} 9. e5 {[%clk 0:02:58]}  Ne4 {[%clk 0:03:01]} 10. Nc3 {[%clk 0:02:57]}  Nxc3 {[%clk 0:02:56]} 11. bxc3 {[%clk 0:02:57]}  f6 {[%clk 0:02:57]} 12. exf6 {[%clk 0:02:53]}  exf6 {[%clk 0:02:57]} 13. h3 {[%clk 0:02:51]}  Be6 {[%clk 0:02:55]} 14. Rb1 {[%clk 0:02:49]}  Rb8 {[%clk 0:02:51]} 15. Bf4 {[%clk 0:02:48]}  Rc8 {[%clk 0:02:52]} 16. Rxb7 {[%clk 0:02:43]}  Na5 {[%clk 0:02:52]} 17. Rxa7 {[%clk 0:02:39]}  Nc4 {[%clk 0:02:42]} 18. Re1 {[%clk 0:02:35]}  Bf7 {[%clk 0:02:39]} 19. Ree7 {[%clk 0:02:29]}  Ra8 {[%clk 0:02:35]} 20. Bb3 {[%clk 0:01:56]}  Rxa7 {[%clk 0:02:34]} 21. Rxa7 {[%clk 0:01:57]}  Qb6 {[%clk 0:02:30]} 22. Re7 {[%clk 0:01:54]}  Qa5 {[%clk 0:02:24]} 23. Qe1 {[%clk 0:01:51]}  Rc8 {[%clk 0:02:02]} 24. Bxc4 {[%clk 0:01:31]}  Rxc4 {[%clk 0:01:54]} 25. Re8+ {[%clk 0:01:31]}  Bxe8 {[%clk 0:01:54]} 26. Qxe8+ {[%clk 0:01:31]}  Bf8 {[%clk 0:01:48]} 27. Bd6 {[%clk 0:01:31]} 1-0


[Site "https://www.chess.com"]